bitfinex/quotes_ETHUSD_20260120
["timestamp","ask_amount","ask_price","bid_price","bid_amount"]
[1768916781888,11.73583957,3084.0,3082.9,3.24369909]
[1768916782088,11.73583957,3084.0,3082.8,15.46799762]
[1768916782306,11.73583957,3084.0,3082.9,3.24369259]
[1768916782473,11.73583957,3084.0,3082.8,15.46798778]
[1768916782806,12.26783957,3083.9,3082.9,3.2436903]
[1768916783011,13.28687068,3083.9,3082.9,6.48738941]
[1768916783223,0.532,3083.8,3082.9,6.48738941]
[1768916783419,0.532,3083.7,3082.9,19.16925993]
[1768916783707,12.8346965,3083.7,3082.8,3.24676315]
[1768916783893,1.28346965,3083.6,3082.8,3.24676315]
[1768916784093,1.28346965,3083.6,3082.8,6.49056748]
[1768916784400,12.8346965,3083.7,3082.8,6.49056748]
[1768916784607,0.532,3083.6,3082.8,6.49056748]
[1768916784795,12.3026965,3083.7,3082.8,0.003]
[1768916784994,0.532,3083.6,3082.8,0.003]
[1768916785702,12.3026965,3083.7,3082.8,0.0283552]
[1768916785944,0.532,3083.6,3082.8,0.0283552]
[1768916786483,0.532,3083.6,3082.8,12.71022572]
[1768916786684,0.532,3083.6,3082.8,12.68487052]
[1768916786884,0.532,3083.6,3083.0,3.2435939]
[1768916787101,0.532,3083.6,3083.1,0.02593486]
[1768916787324,1.28346965,3083.5,3083.1,0.02593486]
[1768916787627,1.28346965,3083.5,3083.2,0.002]
[1768916788332,0.532,3083.6,3083.2,0.002]
[1768916789103,12.3026965,3084.7,3083.2,12.68387052]
[1768916789331,12.3034965,3085.0,3083.4,12.68187052]
[1768916789624,0.532,3084.9,3083.6,12.68187052]
[1768916789826,12.3026965,3084.8,3083.7,0.03242857]
[1768916789999,12.3026965,3084.8,3083.2,0.534]
[1768916790199,12.3026965,3084.6,3083.2,0.002]
[1768916790400,12.3026965,3084.2,3083.2,0.002]
[1768916790601,12.3026965,3084.2,3082.9,0.002]
[1768916790602,12.3026965,3084.0,3082.9,0.002]
[1768916791116,12.3026965,3083.8,3082.9,0.002]
[1768916791436,12.3026965,3083.6,3082.9,0.002]
[1768916792828,0.532,3083.5,3082.9,0.002]
[1768916793044,12.3026965,3083.3,3082.9,0.002]
[1768916793243,14.11816615,3083.2,3082.9,0.002]
[1768916793603,12.8346965,3083.3,3082.9,0.002]
[1768916796110,12.3026965,3083.8,3082.9,0.002]
[1768916796309,0.532,3083.7,3082.9,0.002]
[1768916796510,12.3026965,3083.8,3082.9,12.68387052]
[1768916796823,0.532,3083.7,3082.9,12.68387052]
[1768916797023,12.3026965,3084.5,3082.9,12.68387052]
[1768916797217,16.07685275,3084.4,3083.7,0.02396711]
[1768916797420,1.28354965,3084.9,3083.7,0.02396711]
[1768916797623,12.8346965,3084.8,3083.7,0.02396711]
[1768916797841,0.532,3084.7,3083.7,12.70583763]
[1768916798049,12.3026965,3084.8,3083.7,12.70583763]
[1768916798424,30.0,3084.7,3083.7,0.02396711]
[1768916798617,12.3026965,3084.4,3082.9,0.002]
[1768916798951,9.7253939,3085.0,3082.9,3.245681]
[1768916798952,12.3026965,3084.2,3082.9,3.245681]
[1768916799248,0.532,3084.1,3083.2,12.68187052]
[1768916799613,12.3026965,3084.4,3083.2,12.68187052]
[1768916799847,0.0008,3085.0,3083.2,12.68187052]
[1768916799848,0.532,3084.3,3083.2,13.21387052]
[1768916800149,0.532,3084.4,3083.2,13.21387052]
[1768916800344,0.532,3084.4,3083.3,12.68187052]
[1768916800546,12.3026965,3084.8,3083.3,12.68187052]
[1768916800749,0.532,3084.4,3083.3,12.68187052]
[1768916801145,0.001,3084.3,3083.3,12.68187052]
[1768916801336,0.001,3084.3,3083.5,12.68187052]
[1768916801527,0.001,3084.3,3083.4,6.48634624]
[1768916801528,0.001,3084.3,3083.6,12.68187052]
[1768916802349,12.3026965,3084.8,3083.6,12.68187052]
[1768916802720,0.0008,3085.0,3083.8,12.68187052]
[1768916803418,11.7183888,3085.0,3084.0,12.8575855]
[1768916803617,11.7183888,3085.0,3083.8,3.24270811]
[1768916803855,0.0008,3085.0,3083.9,12.8575855]
[1768916805476,0.0008,3085.0,3084.1,12.8575855]
[1768916805679,0.0008,3085.3,3084.2,13.3895855]
[1768916805818,11.7183888,3085.3,3084.3,0.532]
[1768916806041,14.59398656,3085.3,3084.3,0.532]
[1768916806554,14.59398656,3085.3,3084.0,6.4850843]
[1768916806555,14.59398656,3085.3,3084.1,12.8575855]
[1768916806765,0.0008,3085.3,3084.1,12.8575855]
[1768916807351,0.0008,3085.3,3084.2,6.48466376]
[1768916807568,0.0008,3085.3,3084.3,12.8575855]
[1768916807767,0.0008,3085.3,3084.5,12.8575855]
[1768916808071,11.7183888,3085.3,3084.4,0.532]
[1768916808246,12.89022768,3085.3,3084.4,0.532]
[1768916808977,0.0008,3085.3,3084.4,13.3895855]
[1768916809557,0.0008,3085.3,3084.5,3.24201653]
[1768916810561,0.0008,3085.3,3084.5,6.48403306]
[1768916810761,0.0008,3085.3,3084.5,3.24201653]
[1768916811169,0.0008,3085.3,3084.4,13.3895855]
[1768916811378,11.7183888,3085.3,3084.4,0.532]
[1768916811583,12.89022768,3085.3,3084.4,3.77408191]
[1768916811992,12.89022768,3085.3,3084.4,7.01620355]
[1768916812365,11.7183888,3085.3,3084.4,7.01620355]
[1768916812880,11.7183888,3085.3,3084.4,3.77408191]
[1768916813392,0.001,3085.0,3084.4,3.77408191]
[1768916813764,0.0008,3085.3,3084.5,11.80712565]
[1768916814090,0.0008,3085.3,3084.6,11.83810343]
[1768916814288,0.0008,3085.3,3084.6,11.80712565]
[1768916814473,0.0008,3085.3,3084.7,0.03097677]
[1768916814670,0.0008,3085.3,3084.6,11.80712565]
[1768916815480,0.0008,3085.3,3084.4,7.01620355]
[1768916815789,12.89114005,3085.3,3084.4,3.77408191]
[1768916815963,12.89114005,3085.3,3084.4,7.01620355]
[1768916816165,12.89114005,3085.3,3084.4,18.8233292]
[1768916816796,12.89114005,3085.3,3084.4,15.58120756]
[1768916816965,12.89114005,3085.3,3084.4,18.8233292]
[1768916817167,12.89114005,3085.3,3084.4,15.58120756]
[1768916817597,12.89114005,3085.3,3084.4,12.33912565]
[1768916817898,12.89114005,3085.3,3084.4,3.77411162]
[1768916817899,14.50356616,3085.2,3084.4,3.77411162]
[1768916818102,14.50356616,3085.2,3084.4,0.532]
[1768916818588,15.03556616,3085.2,3084.3,3.24217724]
[1768916818787,15.03556616,3085.2,3084.4,3.24211878]
[1768916819094,15.03556616,3085.2,3084.4,3.24208433]
[1768916819296,14.39397667,3085.1,3084.1,12.33912565]
[1768916819871,14.39397667,3085.1,3084.4,3.24212009]
[1768916820298,0.532,3085.2,3084.3,11.80712565]
[1768916820468,12.89114005,3085.3,3084.2,18.29178941]
[1768916820801,12.89114005,3085.3,3084.2,18.82378941]
[1768916821705,12.89114005,3085.3,3084.2,15.58145753]
[1768916821883,12.89114005,3085.3,3084.2,3.77433188]
[1768916822088,12.89034005,3085.1,3084.2,7.71833849]
[1768916822902,13.42234005,3085.1,3084.2,7.71833849]
[1768916823288,13.42234005,3085.1,3084.2,19.52546414]
[1768916823501,13.42234005,3085.1,3084.3,0.03242226]
[1768916823798,13.42234005,3085.1,3084.2,19.52546414]
[1768916824009,12.89034005,3085.1,3084.2,19.52546414]
[1768916824205,12.89034005,3085.1,3084.3,12.63643482]
[1768916824381,12.89034005,3085.1,3084.2,3.77433188]
[1768916824795,12.89034005,3085.1,3084.2,7.01666376]
[1768916824984,12.89034005,3085.1,3084.2,18.82378941]
[1768916825395,12.89034005,3085.1,3084.5,0.002]
[1768916825591,0.001,3085.0,3084.5,0.002]
[1768916827380,0.532,3085.2,3084.5,0.03421907]
[1768916827713,0.0008,3085.6,3084.6,12.33912565]
[1768916827918,0.0008,3085.6,3084.8,11.80712565]
[1768916828284,0.5328,3085.9,3085.0,11.80712565]
[1768916828616,0.5328,3085.9,3085.0,12.33912565]
[1768916828821,0.5328,3085.9,3085.1,11.80712565]
[1768916829001,0.5328,3085.9,3085.2,3.24128095]
[1768916829688,13.42314005,3085.9,3085.0,3.77343645]
[1768916830720,13.42314005,3085.9,3085.0,0.532]
[1768916830887,12.89034005,3085.7,3085.0,0.532]
[1768916831217,12.89034005,3085.7,3084.6,0.03241911]
[1768916831218,12.89034005,3085.7,3084.9,3.24150751]
[1768916832416,12.89034005,3085.7,3084.7,0.532]
[1768916833183,4.58305671,3085.8,3084.5,0.002]
[1768916833184,12.89034005,3085.6,3084.5,0.002]
[1768916833629,12.89034005,3085.4,3084.5,0.002]
[1768916835783,12.89034005,3085.2,3084.5,0.002]
[1768916836027,12.89034005,3085.0,3084.5,0.002]
[1768916837119,0.532,3085.1,3084.5,0.002]
[1768916837811,12.89034005,3085.6,3084.5,12.99003822]
[1768916838013,12.89034005,3085.6,3084.6,0.03241911]
[1768916838211,0.532,3085.5,3084.7,11.80712565]
[1768916838409,0.532,3085.5,3084.8,11.83954266]
[1768916838586,0.532,3085.5,3084.8,11.80712565]
[1768916838913,0.532,3085.7,3084.8,12.15719698]
[1768916839109,13.42234005,3085.7,3084.8,12.15719698]
[1768916839707,13.42234005,3085.7,3084.8,15.39886568]
[1768916840310,13.42234005,3085.7,3084.9,11.80712565]
[1768916840514,13.42234005,3085.7,3084.9,12.98803822]
[1768916840726,13.42234005,3085.7,3084.6,11.80712565]
[1768916840928,13.42234005,3085.7,3084.7,15.04887773]
[1768916841128,13.42234005,3085.7,3084.6,3.24186561]
[1768916841632,13.42234005,3085.7,3084.8,15.04875537]
[1768916841925,13.42234005,3085.7,3084.8,11.80712565]
[1768916842622,14.55664559,3085.6,3084.5,3.24396944]
[1768916843025,14.55664559,3085.6,3084.6,11.80712565]
[1768916843325,14.55664559,3085.6,3084.6,15.04903395]
[1768916843496,14.55664559,3085.6,3084.6,11.80712565]
[1768916843689,14.55664559,3085.6,3084.6,15.04902553]
[1768916843888,14.55664559,3085.6,3084.8,15.54458453]
[1768916844124,14.55664559,3085.6,3084.8,12.30288641]
[1768916845131,14.55664559,3085.6,3084.9,12.33530237]
[1768916845428,12.89034005,3085.6,3084.9,12.30288641]
[1768916845606,12.89034005,3085.6,3085.0,0.03241491]
[1768916845927,13.26994773,3085.9,3085.1,12.30288641]
[1768916846130,13.26994773,3085.9,3084.9,12.30288641]
[1768916846131,12.73714773,3085.8,3084.9,12.30288641]
[1768916846339,12.73714773,3085.8,3084.7,15.5446396]
[1768916846502,12.73714773,3085.8,3084.7,0.532]
[1768916846834,12.73714773,3085.8,3084.8,3.24169755]
[1768916848633,12.73714773,3085.7,3084.7,16.0766533]
[1768916848839,12.73714773,3085.7,3084.7,12.83488641]
[1768916848998,12.73714773,3085.5,3084.7,12.83488641]
[1768916849305,12.73714773,3085.5,3084.7,12.30288641]
[1768916849906,12.73714773,3085.5,3084.6,0.532]
[1768916850099,0.532,3085.4,3085.1,0.002]
[1768916850300,12.73714773,3085.3,3085.1,0.002]
[1768916850495,14.0640625,3085.3,3084.8,0.002]
[1768916851045,12.73714773,3085.2,3084.5,0.002]
[1768916856010,12.73714773,3085.1,3084.5,0.002]
[1768916856215,12.73714773,3084.9,3084.5,0.002]
[1768916856515,14.0640625,3084.9,3084.5,0.002]
[1768916860510,1.32691477,3085.3,3084.5,12.30488641]
[1768916860711,0.532,3085.4,3084.7,12.30288641]
[1768916861302,12.73714773,3085.5,3084.8,12.30288641]
[1768916861303,13.26914773,3085.5,3084.8,12.30288641]
[1768916861508,0.0008,3085.9,3084.7,3.24178865]
[1768916861509,0.0008,3085.9,3085.0,12.30288641]
[1768916861836,12.73714773,3086.5,3085.1,12.30288641]
[1768916862016,12.73714773,3086.8,3085.3,12.30288641]
[1768916862219,12.73714773,3086.8,3085.5,12.30288641]
[1768916862418,0.532,3087.1,3085.7,12.30288641]
[1768916863240,12.80269611,3087.0,3085.9,12.67120607]
[1768916863443,12.80269611,3087.0,3085.8,0.532]
[1768916863612,12.80269611,3086.8,3085.8,13.20320607]
[1768916863811,0.532,3086.7,3085.8,13.20320607]
[1768916864434,13.33469611,3086.7,3085.8,13.20320607]
[1768916864941,13.33469611,3086.7,3085.8,12.67120607]
[1768916865120,13.33469611,3086.7,3085.6,0.532]
[1768916865321,12.80269611,3086.6,3085.6,0.532]
[1768916865726,12.80269611,3086.6,3085.6,3.24082246]
[1768916865933,12.80269611,3086.6,3085.6,3.77282246]
[1768916866316,12.80269611,3086.6,3085.6,0.532]
[1768916866732,12.80269611,3086.6,3085.5,16.47637897]
[1768916866932,14.61005914,3086.5,3085.5,16.47637897]
[1768916867238,14.61005914,3086.5,3085.5,3.8051729]
[1768916867436,14.61005914,3086.5,3085.6,12.67120607]
[1768916867624,14.61005914,3086.5,3085.5,0.03223348]
[1768916867830,14.61005914,3086.5,3085.6,0.532]
[1768916868025,14.58768767,3086.4,3085.6,0.532]
[1768916868428,12.80269611,3086.2,3085.5,0.03223348]
[1768916868629,12.80269611,3086.2,3084.8,12.67320607]
[1768916868943,12.80269611,3086.2,3084.8,0.002]
[1768916869112,12.80269611,3086.0,3084.8,0.002]
[1768916869314,12.80269611,3085.6,3084.8,0.002]
[1768916869623,12.80269611,3085.4,3084.8,0.002]
[1768916870240,12.80269611,3085.4,3084.5,0.002]
[1768916871341,3.24117589,3085.3,3084.5,0.002]
[1768916871545,12.80269611,3085.2,3084.5,0.002]
[1768916871746,12.80269611,3085.0,3084.5,0.002]
[1768916874522,12.80269611,3085.0,3084.8,0.002]
[1768916876746,2.1373872,3085.1,3084.8,0.002]
[1768916876945,1.6053872,3085.1,3084.8,0.002]
[1768916877126,2.1373872,3085.1,3084.8,0.002]
[1768916877653,0.001,3085.1,3084.8,11.76816596]
[1768916879521,0.001,3085.1,3084.8,0.002]
[1768916880868,0.001,3085.1,3084.8,11.76816596]
[1768916881223,0.001,3085.1,3084.8,0.002]
[1768916882026,11.95220721,3085.1,3084.8,0.002]
[1768916882226,11.95220721,3085.1,3084.5,0.534]
[1768916882227,13.14642793,3085.0,3084.5,0.002]
[1768916883921,0.001,3085.1,3084.6,11.76616596]
[1768916884125,0.532,3085.6,3084.7,11.76616596]
[1768916885127,12.48320721,3085.9,3084.7,11.76616596]
[1768916885861,11.95120721,3086.2,3084.7,11.76616596]
[1768916886093,3.23912711,3087.3,3084.6,0.532]
[1768916886094,11.95120721,3086.5,3084.9,11.76616596]
[1768916886231,12.48320721,3086.5,3085.1,11.76616596]
[1768916886568,11.95120721,3086.3,3084.5,15.01018026]
[1768916886758,0.001,3085.3,3084.6,11.76616596]
[1768916886951,0.001,3085.3,3084.6,15.00807659]
[1768916887161,0.001,3085.3,3084.5,3.24397127]
[1768916887366,11.95220721,3085.3,3084.5,0.002]
[1768916888443,0.532,3085.2,3084.5,0.002]
[1768916889746,12.48320721,3085.2,3084.5,0.002]
[1768916889977,13.52374942,3085.1,3084.5,0.002]
[1768916893492,1.57254221,3085.1,3084.5,0.002]
[1768916893693,0.532,3085.2,3084.5,0.002]
[1768916893911,0.001,3085.3,3084.5,11.76816596]
[1768916895096,11.95120721,3085.2,3084.5,0.002]
[1768916897468,11.95120721,3085.1,3084.5,0.002]
[1768916898993,0.532,3085.2,3084.5,11.76816596]
[1768916899193,0.532,3085.2,3084.8,0.002]
[1768916899497,0.001,3085.3,3084.8,0.002]
[1768916900574,0.001,3085.3,3084.8,11.76816596]
[1768916903781,0.001,3085.3,3084.8,0.002]
[1768916903977,1.60426831,3085.3,3084.8,0.002]
[1768916904178,13.86297089,3085.3,3084.8,0.002]
[1768916904686,1.60426831,3085.3,3084.8,0.002]
[1768916904886,0.001,3085.3,3084.8,0.002]
[1768916909506,12.25870258,3085.2,3084.8,0.002]
[1768916909907,0.001,3085.3,3084.8,0.002]
[1768916910108,0.001,3085.3,3084.8,12.66551941]
[1768916910938,0.001,3085.3,3084.9,0.00837479]
[1768916911530,0.001,3085.3,3085.1,0.002]
[1768916911904,0.37839694,3085.3,3085.1,0.002]
[1768916912131,0.001,3085.3,3085.1,0.002]
[1768916917148,12.25970258,3085.3,3085.1,0.002]
[1768916918946,0.001,3085.3,3085.1,0.002]
[1768916919139,0.001,3085.3,3085.1,12.66551941]
[1768916919347,12.79070258,3085.7,3085.1,12.66551941]
[1768916919642,12.25870258,3086.1,3085.1,12.66551941]
[1768916919844,12.79070258,3086.0,3085.1,12.66551941]
[1768916920145,12.79070258,3086.0,3085.1,0.002]
[1768916920313,12.25870258,3085.8,3085.1,0.002]
[1768916922757,12.25870258,3085.7,3085.1,0.002]
[1768916922956,12.25870258,3086.0,3085.1,12.66551941]
[1768916923167,13.12104524,3085.8,3085.1,12.66551941]
[1768916923367,13.12104524,3085.8,3085.1,0.002]
[1768916925178,1.22587026,3086.1,3085.1,12.84961863]
[1768916925389,13.12104524,3086.2,3085.1,12.84961863]
[1768916925547,12.58904524,3086.1,3085.1,0.002]
[1768916926357,12.58904524,3086.1,3085.1,12.84961863]
[1768916926533,13.12104524,3086.1,3085.1,12.84961863]
[1768916926961,13.12104524,3086.1,3085.1,3.24334138]
[1768916927273,12.58904524,3086.0,3085.2,13.17195277]
[1768916928070,12.58904524,3086.0,3085.1,0.002]
[1768916928273,12.58904524,3086.0,3085.1,3.24334822]
[1768916928875,12.58904524,3086.0,3085.2,12.84761863]
[1768916929074,12.58904524,3086.8,3085.3,12.84761863]
[1768916929476,13.12104524,3086.7,3085.3,12.84761863]
[1768916929656,15.08104895,3086.7,3085.5,12.84761863]
[1768916930458,12.58904524,3086.8,3085.5,12.84761863]
[1768916931088,12.58904524,3086.6,3085.5,16.08854346]
[1768916931467,12.58904524,3086.6,3085.6,12.84761863]
[1768916931961,12.58904524,3086.8,3085.7,0.532]
[1768916932170,12.58904524,3086.8,3085.8,12.84761863]
[1768916932470,14.22509288,3086.8,3085.8,12.84761863]
[1768916932664,14.22509288,3086.8,3085.5,3.24092483]
[1768916932990,14.22509288,3086.8,3085.6,0.532]
[1768916933283,12.58904524,3086.7,3085.7,11.75983601]
[1768916934486,0.001,3086.4,3085.7,11.75983601]
[1768916935183,0.001,3086.4,3085.8,3.24065072]
[1768916935389,0.001,3086.4,3085.9,11.75983601]
[1768916936890,12.06586276,3086.4,3085.6,3.77281136]
[1768916937476,0.001,3086.4,3085.7,11.75983601]
[1768916939294,0.001,3086.4,3085.8,12.29183601]
[1768916939664,0.001,3086.4,3085.8,11.75983601]
[1768916941994,0.001,3086.4,3085.6,0.532]
[1768916941995,12.06586276,3086.4,3085.6,15.53269662]
[1768916942564,12.06586276,3086.4,3085.2,11.75983601]
[1768916942866,12.06586276,3086.4,3085.4,15.00089455]
[1768916943066,12.59786276,3086.4,3085.4,15.00089455]
[1768916943295,13.85764904,3086.4,3085.5,11.75983601]
[1768916943601,0.001,3086.4,3085.6,11.75983601]
[1768916944462,0.001,3086.4,3085.7,0.532]
[1768916944661,0.001,3086.4,3085.8,11.75983601]
[1768916945718,0.532,3086.7,3085.9,11.79224146]
[1768916946001,0.532,3086.7,3085.9,11.75983601]
[1768916946366,12.59686276,3087.0,3086.1,11.75983601]
[1768916946704,12.59686276,3087.0,3086.3,11.75983601]
[1768916946913,0.001,3086.4,3086.3,11.75983601]
[1768916947215,12.43502394,3087.0,3086.3,12.93581961]
[1768916947379,12.06486276,3086.9,3085.9,11.75983601]
[1768916947564,12.06486276,3086.9,3086.1,0.532]
[1768916949204,12.06486276,3086.9,3086.1,12.29183601]
[1768916949370,12.06486276,3086.8,3086.1,12.29183601]
[1768916950296,12.59686276,3087.0,3086.2,11.75983601]
[1768916951807,12.06486276,3087.2,3086.3,11.75983601]
[1768916952008,0.532,3087.1,3086.3,11.75983601]
[1768916953720,12.59686276,3087.1,3086.3,11.75983601]
[1768916954985,12.06486276,3087.0,3086.3,11.75983601]
[1768916955222,13.6484812,3087.0,3086.3,11.75983601]
[1768916955410,13.6484812,3087.0,3086.1,0.532]
[1768916955922,13.6484812,3087.0,3086.1,12.29183601]
[1768916956360,13.6484812,3087.0,3086.1,15.53216692]
[1768916956852,13.6484812,3087.0,3086.1,12.29183601]
[1768916957149,13.6484812,3087.0,3086.1,15.53215059]
[1768916958344,13.6484812,3087.0,3086.1,12.29183601]
[1768916958653,13.6484812,3087.0,3086.1,12.29383601]
[1768916959459,12.06486276,3086.9,3086.1,0.002]
[1768916961324,12.06486276,3086.9,3086.1,11.76183601]
[1768916961646,13.80684511,3086.9,3086.1,11.76183601]
[1768916962969,13.80684511,3086.9,3086.1,0.002]
[1768916963134,12.06486276,3086.8,3086.1,0.002]
[1768916963968,0.532,3086.7,3086.1,0.002]
[1768916964170,12.83607662,3086.6,3086.1,0.002]
[1768916964769,0.532,3086.7,3086.1,12.08522973]
[1768916967570,13.36807662,3086.7,3086.1,0.002]
[1768916967770,13.36807662,3086.7,3086.1,0.0036]
[1768916969249,0.532,3086.7,3086.1,12.08682973]
[1768916969457,12.83607662,3086.9,3086.1,12.08682973]
[1768916969642,0.532,3086.9,3086.1,12.08682973]
[1768916969949,13.36807662,3086.9,3086.1,12.08682973]
[1768916970545,14.70488428,3086.9,3086.4,0.002]
[1768916971475,12.83607662,3086.8,3086.4,0.002]
[1768916971774,12.83607662,3086.8,3086.1,0.0036]
[1768916972677,13.89544961,3086.9,3086.1,0.0036]
[1768916972678,12.83607662,3086.6,3086.1,0.0036]
[1768916972895,12.83607662,3086.4,3086.0,0.002]
[1768916973071,12.83607662,3086.2,3085.8,0.002]
[1768916973250,12.83607662,3086.2,3085.4,0.532]
[1768916973843,12.83607662,3086.0,3085.4,0.532]
[1768916974146,12.83607662,3086.0,3085.1,15.32653397]
[1768916974359,12.83607662,3086.0,3085.2,12.08322973]
[1768916974747,12.83607662,3086.0,3085.2,15.32450539]
[1768916974944,12.83607662,3086.0,3085.2,15.32450725]
[1768916975498,12.83607662,3086.0,3085.2,12.08322973]
[1768916976496,14.49690776,3086.0,3085.2,12.08322973]
[1768916976799,14.49690776,3086.0,3085.2,15.32450898]
[1768916977301,14.49690776,3086.0,3085.2,3.24127925]
[1768916977603,14.49690776,3086.0,3085.3,12.08322973]
[1768916979398,14.49690776,3086.0,3085.3,15.32440179]
[1768916979971,14.49690776,3086.0,3085.3,12.08322973]
[1768916981688,14.49690776,3086.0,3085.3,3.24116367]
[1768916981878,14.49690776,3086.0,3085.4,12.08322973]
[1768916982402,13.39749536,3085.9,3085.4,12.08322973]
[1768916982870,13.39749536,3085.9,3085.5,0.002]
[1768916986400,12.74828191,3085.8,3085.5,0.002]
[1768916986584,12.74828191,3085.8,3085.1,0.002]
[1768916986780,12.74828191,3085.6,3085.1,0.002]
[1768916986984,12.74828191,3085.4,3085.1,0.002]
[1768916988994,12.74828191,3085.4,3084.8,0.002]
[1768916988995,12.74828191,3085.2,3084.8,0.002]
[1768916991606,0.532,3085.3,3084.8,12.10206345]
[1768916992807,12.74908191,3085.4,3084.8,12.10206345]
[1768916993011,1.40771101,3085.3,3084.8,12.10206345]
[1768916994315,14.34818791,3085.3,3084.8,12.10206345]
[1768916995280,0.001,3085.0,3084.8,12.10206345]
[1768916995681,1.40771101,3085.3,3084.9,12.8142647]
[1768916996389,0.0008,3085.4,3084.9,12.8142647]
[1768916996595,12.9412769,3085.7,3084.9,12.8142647]
[1768916996596,0.532,3085.6,3085.1,12.8142647]
[1768916996908,0.0008,3085.7,3085.1,12.8142647]
[1768916997813,0.532,3086.0,3085.3,12.8142647]
[1768916998709,13.4724769,3086.0,3085.3,12.8142647]
[1768916999113,12.9404769,3085.9,3085.1,12.8142647]
[1768917000009,12.9404769,3085.9,3085.2,12.8142647]
[1768917000198,13.4724769,3086.0,3085.2,12.8142647]
[1768917000383,13.4724769,3086.0,3085.3,12.8142647]
[1768917001691,12.9404769,3085.9,3085.0,12.8142647]
[1768917002311,12.9404769,3085.9,3085.0,16.05575268]
[1768917002514,0.532,3085.9,3085.2,12.8142647]
[1768917002809,12.9404769,3086.3,3085.3,12.8142647]
[1768917003111,0.532,3086.1,3085.3,12.8142647]
[1768917003513,13.4724769,3086.1,3085.3,12.8142647]
[1768917004078,1.29412769,3086.3,3085.3,12.8142647]
[1768917004284,0.532,3086.2,3085.3,12.8142647]
[1768917004486,0.532,3086.2,3085.3,3.24116781]
[1768917004685,0.532,3086.2,3085.4,13.19158148]
[1768917005113,12.9404769,3086.4,3085.4,13.19158148]
[1768917005289,0.532,3086.3,3085.4,13.19158148]
[1768917005714,0.532,3086.3,3085.5,12.8142647]
[1768917005920,12.9404769,3086.2,3085.3,12.8142647]
[1768917006090,12.9404769,3086.0,3085.0,12.8142647]
[1768917006289,12.9404769,3085.8,3084.8,12.8162647]
[1768917006615,12.9404769,3085.7,3084.8,12.8162647]
[1768917007015,12.9404769,3085.7,3084.8,0.002]
[1768917008918,12.9404769,3085.5,3084.8,0.002]
[1768917009109,6.48172154,3085.6,3084.8,0.002]
[1768917009110,12.9404769,3085.3,3084.8,0.002]
[1768917015437,12.9404769,3085.2,3084.8,0.002]
[1768917016230,3.2412822,3085.2,3084.8,0.002]
[1768917016443,12.9404769,3085.1,3084.8,0.002]
[1768917016649,12.9404769,3084.9,3084.1,0.002]
[1768917016927,12.9404769,3084.7,3084.1,0.002]
[1768917017132,12.9404769,3084.5,3084.1,0.002]
[1768917017309,13.4724769,3084.5,3084.1,0.002]
[1768917017906,13.4724769,3084.5,3083.5,0.002]
[1768917017907,12.9404769,3084.4,3083.5,0.002]
[1768917018113,12.9412769,3084.4,3083.5,0.002]
[1768917018307,12.9404769,3084.0,3083.5,0.002]
[1768917018535,12.9404769,3083.8,3083.2,0.002]
[1768917018858,12.9404769,3083.8,3082.9,0.002]
[1768917019511,12.9404769,3083.8,3082.8,0.003]
[1768917019715,12.9404769,3083.8,3082.6,0.0062]
[1768917019934,12.9404769,3083.6,3082.6,0.00420593]
[1768917020141,12.9404769,3083.4,3082.6,0.00420593]
[1768917020346,12.9404769,3083.2,3082.6,0.00420593]
[1768917020543,12.9404769,3083.0,3082.6,0.00420593]
[1768917022918,13.4724769,3083.0,3082.6,0.00420593]
[1768917023130,14.81972459,3083.0,3082.6,0.00420593]
[1768917023925,11.79932748,3082.9,3082.6,0.00420593]
[1768917024126,11.79932748,3082.9,3082.0,0.003]
[1768917024560,11.79932748,3082.7,3082.0,0.003]
[1768917024722,11.79932748,3082.5,3082.0,0.003]
[1768917024919,13.03246023,3082.5,3082.0,0.003]
[1768917025551,13.03246023,3082.5,3081.3,12.31059815]
[1768917025931,13.03246023,3082.5,3081.3,15.55597731]
[1768917026320,13.03246023,3082.5,3081.2,0.533]
[1768917026527,33.24464633,3082.0,3080.1,12.31159518]
[1768917026724,33.24464633,3082.0,3080.2,12.98632562]
[1768917026725,11.79932748,3081.7,3080.2,12.98632562]
[1768917026926,0.532,3081.6,3080.3,12.31159518]
[1768917027234,0.532,3081.6,3080.2,0.67473044]
[1768917027235,12.33132748,3081.6,3080.6,3.24608841]
[1768917027445,12.33132748,3081.6,3080.7,15.55761041]
[1768917027754,12.33132748,3081.6,3080.7,12.31159518]
[1768917027966,12.33132748,3081.6,3080.3,12.31159518]
[1768917028276,12.33132748,3081.6,3080.2,0.67473044]
[1768917028454,11.79932748,3081.4,3080.2,0.67473044]
[1768917028656,11.79932748,3081.2,3080.2,0.67473044]
[1768917028827,11.79932748,3081.3,3080.2,12.98632562]
[1768917029022,0.533,3081.2,3080.2,3.92126034]
[1768917029228,0.533,3081.2,3080.3,12.34405955]
[1768917029428,2.09076495,3081.2,3080.3,12.31159518]
[1768917029728,11.79932748,3081.1,3080.2,0.67473044]
[1768917030565,11.79932748,3081.1,3080.0,0.0032]
[1768917030773,11.79932748,3080.9,3080.0,0.0032]
[1768917031378,0.533,3080.8,3080.0,12.31479518]
[1768917031873,0.533,3080.8,3080.6,0.002]
[1768917032548,0.533,3080.9,3080.6,0.002]
[1768917033678,0.0008,3080.4,3079.9,12.31159518]
[1768917033828,0.0008,3080.4,3079.7,12.31159518]
[1768917034028,0.0008,3080.4,3079.8,12.31159518]
[1768917034261,0.0008,3080.4,3079.5,0.533]
[1768917034262,0.0008,3080.4,3080.0,3.24671771]
[1768917034558,0.5338,3080.7,3080.2,12.31159518]
[1768917035260,0.0008,3080.7,3080.2,12.31159518]
[1768917035471,0.0008,3080.7,3079.9,15.55838939]
[1768917035649,11.80012748,3080.7,3080.0,12.31159518]
[1768917035855,13.03344023,3080.7,3079.8,12.31159518]
[1768917036050,13.03344023,3080.7,3079.9,3.24685823]
[1768917036368,13.03344023,3080.7,3079.4,0.002]
[1768917036553,11.79932748,3080.5,3079.4,0.002]
[1768917036732,11.79932748,3080.3,3079.4,0.002]
[1768917036939,1.71293275,3080.2,3079.4,12.31359518]
[1768917037234,0.533,3080.6,3079.9,12.31159518]
[1768917037673,3.77912847,3080.6,3079.9,12.31159518]